Cogmind - Beta 10.2 --- EXPLORER MODE // 2021.05.14 @ 17:53:51 Player: theHiddenStone Result: Self-destructed Performance ------------- Evolutions (1) 500 Regions Visited (3) 600 Robots Destroyed (19) 95 Value Destroyed (544) 544 Prototype IDs (0) 0 Alien Tech Used (0) 0 Bonus (0) 0 TOTAL SCORE: 1739 Bonus ------- None Cogmind --------- Core Integrity 326/400 Matter 290/300 Energy 125/125 System Corruption 0% Temperature Cool (16) Movement Walking (120) Location -9/Mines Parts ------- > --- POWER (2) -------- Light Ion Engine > --- PROPULSION (2) --- Aluminum Leg Aluminum Leg > --- UTILITY (4) ------ Large Storage Unit Terrain Scan Processor Targeting Computer Power Shielding > --- WEAPON (2) ------- (None) > --- INVENTORY (10) --- Wheel Improved Heat Sink Small Storage Unit Large Storage Unit Medium Matter Pod (69) Sensor Array Peak State ------------ > --- POWER ------------ Ion Engine Improved Ion Engine > --- PROPULSION ------- Aluminum Leg Improved Aluminum Leg > --- UTILITY ---------- Improved Heat Sink Large Storage Unit Targeting Computer Light Armor Plating > --- WEAPON ----------- Beam Rifle Shotgun > --- INVENTORY -------- Light Ion Engine Large Storage Unit Structural Scanner Sensor Array Terrain Scan Processor Power Shielding EM Pulse Gun Medium Laser Rocket Launcher Mining Laser [Rating: 17] Favorites ----------- Power Ion Engine Engine Ion Engine Propulsion Aluminum Leg Leg Aluminum Leg Utility Targeting Computer Device Improved Heat Sink Storage Large Storage Unit Processor Targeting Computer Protection Light Armor Plating Weapon Medium Laser Energy Gun Medium Laser Ballistic Gun Shotgun Launcher Rocket Launcher Special Weapon Mining Laser Build | -11 -10 -9 -9 ------- Run | Scr Mat Mat Min Slots Evolved 3 | . 1 2 . Power 1 | . . 1 . Propulsion . | . . . . Utility 2 | . 1 1 . Weapon . | . . . . Parts Attached 31 | 8 2 6 15 Power 5 | 1 . 2 2 Engine 5 | 1 . 2 2 Core . | . . . . Reactor . | . . . . Propulsion 6 | 2 . . 4 Treads . | . . . . Leg 6 | 2 . . 4 Wheel . | . . . . Hover . | . . . . Flight . | . . . . Utility 10 | 3 2 2 3 Device 3 | . . 2 1 Storage 2 | 1 1 . . Processor 2 | . 1 . 1 Hackware . | . . . . Protection 3 | 2 . . 1 Artifact . | . . . . Weapon 10 | 2 . 2 6 Energy Gun 6 | 2 . 1 3 Energy Cannon . | . . . . Ballistic Gun 1 | . . . 1 Ballistic Cannon . | . . . . Launcher 1 | . . . 1 Special Weapon 2 | . . 1 1 Impact Weapon . | . . . . Slashing Weapon . | . . . . Piercing Weapon . | . . . . Special Melee Weapon . | . . . . Unidentified Prototypes . | . . . . Parts Lost 13 | . . . 13 Power 3 | . . . 3 Propulsion 2 | . . . 2 Utility 2 | . . . 2 Weapon 6 | . . . 6 Highest Loss Streak 7 | . . . 7 Average Slot Usage (%) 97 | . 100 99 94 Engine 16 | . 12 20 18 Leg 21 | . 25 20 18 Device 5 | . . 9 9 Storage 10 | . 12 10 10 Processor 11 | . 12 10 13 Protection 9 | . 12 10 5 Energy Gun 17 | . 25 17 8 Launcher 1 | . . . 3 Special Weapon 2 | . . 2 5 Naked Turns . | . . . . Heaviest Build 39 | 20 28 37 39 Greatest Support 23 | 20 20 20 23 Greatest Overweight (x) 3 | . 1 1 3 Average Overweight (x) . | . . 1 1 Largest Inventory Capacity 10 | 8 10 10 10 Average Capacity 9 | 6 9 10 10 Most Carried 10 | 5 9 10 10 Average Carried 8 | 3 7 8 9 Final Capacity 10 | 8 10 10 10 Final Carried 10 | 5 9 10 6 Class Distribution -------------------- 94% | Hacker-Mutant 5% | Scavenger-Mutant Dominant Class ---------------- Hacker-Mutant | -10/Materials Hacker-Mutant | -9/Materials Hacker-Mutant | -9/Mines Resources | -11 -10 -9 -9 ----------- Run | Scr Mat Mat Min Matter Collected 700 | 196 104 52 348 Remotely . | . . . . Salvage Created 568 | . 132 378 58 Parts 42 | . 10 29 3 Haulers Intercepted . | . . . . Recyclers Shooed 2 | . . 1 1 Parts Field Recycled . | . . . . Retrieved Matter . | . . . . Parts Self-Destructed . | . . . . Prevented . | . . . . Kills | -11 -10 -9 -9 ------- Run | Scr Mat Mat Min Combat Hostiles Destroyed 27 | . 2 10 15 Guns 16 | . 2 10 4 AOE 10 | . . . 10 Classes Destroyed 8 | . 2 4 2 Builder 2 | . . 1 1 Watcher 2 | . 2 . . Swarmer 4 | . . 4 . Grunt 6 | . 2 3 1 Brawler 2 | . . 1 1 Sentry 2 | . . 2 . Demolisher 1 | . . . 1 Assembled 12 | . . . 12 Best Kill Streak 4 | . 2 2 4 Combat Bots Only 3 | . 2 2 3 Max Kills in Single Turn 1 | . 1 1 1 Gunslinging . | . . . . Exploded 1 | . . . 1 Melee . | . . . . Uniques/NPCs Destroyed . | . . . . Combat | -11 -10 -9 -9 -------- Run | Scr Mat Mat Min Damage Taken 1087 | . 70 211 806 Core 81 | . 7 12 62 Absorbed by Shields . | . . . . Core Remaining (%) 98 | 100 97 . . Volleys Fired 74 | . 10 26 38 Largest 2 | . 2 2 2 Hottest 156 | . 90 156 156 Shots Fired 123 | . 20 42 61 Gun 99 | . 20 41 38 Cannon . | . . . . Launcher 16 | . . . 16 Special 8 | . . 1 7 Kinetic 7 | . . . 7 Thermal 85 | . 10 37 38 Explosive 16 | . . . 16 Electromagnetic 15 | . 10 5 . Robot Hit Streak 18 | . 16 18 15 Robot Miss Streak 1 | . 1 1 1 Penetration Max . | . . . . Secondary Targets . | . . . . Shots Hit Robots 95 | . 16 36 43 Core Hits 51 | . 5 17 29 Critical Hits . | . . . . Critical Kills . | . . . . Critical Parts Destroyed . | . . . . Melee Attacks . | . . . . Impact . | . . . . Slashing . | . . . . Piercing . | . . . . Sneak Attacks . | . . . . Combat Hostiles . | . . . . Follow-up Attacks . | . . . . Damage Inflicted 1782 | . 237 476 1069 Guns 1069 | . 209 465 395 Cannons . | . . . . Explosions 582 | . 28 . 554 Melee . | . . . . Ramming 11 | . . 11 . Kinetic 101 | . . . 101 Thermal 940 | . 104 422 414 Explosive 554 | . . . 554 Electromagnetic 176 | . 133 43 . Impact . | . . . . Slashing . | . . . . Piercing . | . . . . Highest Corruption . | . . . . Average Corruption . | . . . . Corruption Purged . | . . . . Overload Shots . | . . . . Overflow Damage 50 | . . . 50 Projectiles . | . . . . Explosions 50 | . . . 50 Melee . | . . . . Knockbacks . | . . . . Impact . | . . . . Kinetic . | . . . . Secondary . | . . . . Self-Inflicted Damage 304 | . 11 3 290 Shots 13 | . 1 . 12 Rammed 1 | . . 1 . Targets Rammed 2 | . . 2 . Kicked 1 | . . 1 . Crushed . | . . . . Highest Temperature 369 | . 227 369 70 Average Temperature 84 | . 91 119 22 Received Heat Transfer 282 | . 42 120 120 Effects 5 | . . 5 . Shutdowns 1 | . . 1 . Interference 4 | . . 4 . Siege Activations . | . . . . Robots Corrupted . | . . . . Combat Hostiles . | . . . . Parts Fried . | . . . . Impact Corruptions . | . . . . Robots Melted 1 | . . . 1 Combat Hostiles 1 | . . . 1 Parts Melted 1 | . . 1 . Heat Transferred 2400 | . 272 1147 981 Parts Sabotaged . | . . . . Parts Stolen . | . . . . Parts Stripped . | . . . . Power Chain Reactions 1 | . 1 . . Missiles Intercepted . | . . . . Alert | -11 -10 -9 -9 ------- Run | Scr Mat Mat Min Peak Influence 344 | . 65 344 193 Initial 94 | . . 19 94 Average 75 | . 21 170 101 Maximum Alert Level 1 | . . 1 . Low Security (%) 93 | 100 100 66 100 Level 1 6 | . . 33 . Level 2 . | . . . . Level 3 . | . . . . Level 4 . | . . . . Level 5 . | . . . . High Security . | . . . . Max Security . | . . . . Squads Dispatched 1 | . 1 . . Investigation 1 | . 1 . . Extermination . | . . . . Reinforcement . | . . . . Assault . | . . . . Garrison . | . . . . Intercept . | . . . . Construction Impeded . | . . . . Haulers Reinforced . | . . . . Stealth | -11 -10 -9 -9 --------- Run | Scr Mat Mat Min Distress Signals 2 | . . 2 . Communications Jammed . | . . . . Distress Signals . | . . . . Times Spotted 39 | . 6 14 19 Peak Tracking Total 4 | . 3 4 4 Tactical Retreats 3 | . 1 1 1 Traps | -11 -10 -9 -9 ------- Run | Scr Mat Mat Min Traps Triggered 4 | . 4 . . Indirectly . | . . . . Trap Hack Attempts . | . . . . Triggered . | . . . . Disarmed . | . . . . Reprogrammed . | . . . . Reused . | . . . . Traps Extracted . | . . . . Installed . | . . . . Triggered . | . . . . Machines | -11 -10 -9 -9 ---------- Run | Scr Mat Mat Min Machines Disabled 3 | . 1 . 2 Max in Single Turn 1 | . 1 . 1 Machines Sabotaged . | . . . . Garrisons Compromised . | . . . . Overloaded Fab Kills . | . . . . Fab Network Shutdowns . | . . . . Hacking | -11 -10 -9 -9 --------- Run | Scr Mat Mat Min Machines Accessed 6 | . 2 3 1 Terminals 3 | . 1 1 1 Fabricators . | . . . . Repair Stations . | . . . . Recycling Units 3 | . 1 2 . Scanalyzers . | . . . . Garrison Access . | . . . . Total Hacks 9 | . 4 4 1 Successful 7 | . 3 3 1 Failed 2 | . 1 1 . Catastrophic . | . . . . Database Lockouts . | . . . . Manual . | . . . . Terminals 5 | . 3 1 1 Fabricators . | . . . . Repair Stations . | . . . . Recycling Units 4 | . 1 3 . Scanalyzers . | . . . . Garrison Access . | . . . . Terminal Hacks 5 | . 3 1 1 Record 4 | . 3 1 . Zone Layout 1 | . . . 1 Fabricator Hacks . | . . . . Repair Station Hacks . | . . . . Recycling Unit Hacks 2 | . . 2 . Retrieve Matter 1 | . . 1 . Retrieve Components 1 | . . 1 . Scanalyzer . | . . . . Garrison Access Hacks . | . . . . Unauthorized Hacks . | . . . . Terminals . | . . . . Fabricators . | . . . . Repair Stations . | . . . . Recycling Units . | . . . . Scanalyzers . | . . . . Garrison Access . | . . . . Data Cores Recovered . | . . . . Used . | . . . . Hacking Detections 3 | . 2 1 . Full Trace Events 1 | . 1 . . Feedback Events . | . . . . Feedback Blocked . | . . . . Robot Schematics Acquired . | . . . . Robots Built . | . . . . Matter . | . . . . Time . | . . . . Total Robot Build Rating . | . . . . Part Schematics Acquired . | . . . . Parts Built . | . . . . Matter . | . . . . Time . | . . . . Total Part Build Rating . | . . . . Parts Repaired . | . . . . Time . | . . . . Parts Recycled . | . . . . Recycled Matter . | . . . . Retrieved Matter . | . . . . Retrieved Components 10 | . . 10 . Parts Scanalyzed . | . . . . Part Schematics Acquired . | . . . . Parts Damaged . | . . . . Bothacking | -11 -10 -9 -9 ------------ Run | Scr Mat Mat Min Used RIF Installer . | . . . . Robots Hacked . | . . . . Non-combat . | . . . . Combat . | . . . . Robot Hacks Applied . | . . . . Relay Couplers Released . | . . . . Robots Rewired . | . . . . Allies Hacked . | . . . . Hacks Repelled . | . . . . Allies | -11 -10 -9 -9 -------- Run | Scr Mat Mat Min Total Allies . | . . . . Largest Group . | . . . . Highest-Rated Group . | . . . . Highest-Rated Ally . | . . . . Total Orders . | . . . . Ally Attacks . | . . . . Total Damage . | . . . . Kills . | . . . . Allies Corrupted . | . . . . Allies Melted . | . . . . Intel | -11 -10 -9 -9 ------- Run | Scr Mat Mat Min Robot Analysis Total . | . . . . Derelict Logs Recovered . | . . . . Drone Launches . | . . . . Drone Recoveries . | . . . . Exploration | -11 -10 -9 -9 ------------- Run | Scr Mat Mat Min Turns Passed 1816 | 143 725 376 572 Spaces Moved 991 | 106 475 144 266 Core 5 | 5 . . . Treads . | . . . . Legs 986 | 101 475 144 266 Wheels . | . . . . Hover . | . . . . Flight . | . . . . Fastest Speed 50 | 50 120 150 120 Average Speed 139 | 116 133 150 153 Slowest Speed 210 | 120 150 150 210 Overloaded Moves . | . . . . Propulsion Burnouts . | . . . . Robots Hopped . | . . . . Cave-ins Triggered . | . . . . Exploration Rate (%) 33 | 6 62 15 52 Regions Visited 3 Branch Regions 1 Pre-discovered Areas . | . . . . Known Exits Taken 3 | 1 1 1 . Unknown Exits Taken . | . . . . Scrap Searched . | . . . . Spaces Dug . | . . . . Terrain Destroyed 164 | . 2 . 162 Melee . | . . . . Projectile . | . . . . AOE 164 | . 2 . 162 Terrain Rammed . | . . . . Walls Destroyed . | . . . . Machines Disabled . | . . . . Actions | -11 -10 -9 -9 --------- Run | Scr Mat Mat Min Total 1288 | 126 547 258 357 Wait 146 | . 54 74 18 Move 988 | 105 474 143 266 Hop . | . . . . Pick Up 36 | 12 6 5 13 Fast Attach . | . . . . Attach 23 | 8 1 2 12 Detach 1 | 1 . . . Swap 8 | . 1 4 3 Drop 10 | . 1 2 7 Fire 74 | . 10 26 38 Melee . | . . . . Ram . | . . . . Kick 2 | . . 2 . Crush . | . . . . Escape Stasis . | . . . . Rewire . | . . . . Trap . | . . . . Miscellaneous . | . . . . Route ------- -11/Scrapyard -10/Materials -9/Materials -9/Mines (discovered 2 exits: *Mat x2) History --------- Turn | Location | Event 8 | -11/Scrapyard | Identified exit to Materials 8 | -11/Scrapyard | Discovered exit to Materials (range 16) 144 | -11/Scrapyard | Entered Materials 144 | -10/Materials | Evolved 1 slot: Utility x1 307 | -10/Materials | Identified exit to Materials 307 | -10/Materials | Discovered exit to Materials (range 12) 317 | -10/Materials | Build established: Hacker-Mutant 869 | -10/Materials | Entered another Materials area 869 | -9/Materials | Evolved 2 slots: Power x1, Utility x1 1237 | -9/Materials | Identified exit to Mines 1237 | -9/Materials | Discovered exit to Mines (range 6) 1245 | -9/Materials | Entered Mines 1299 | -9/Mines | Received a Rocket Launcher from a helpful Derelict 1302 | -9/Mines | Identified exit to Materials 1302 | -9/Mines | Discovered exit to Materials (range 7) 1375 | -9/Mines | Discovered exit to Materials (range 9) 1522 | -9/Mines | Assembled infested the area 1817 | -9/Mines | Self-destructed Last Messages --------------- Imp. Ion Engine destroyed. Destroyed Asb. Hover Unit. Beam Rifle destroyed. K-01 Serf collects debris. as-66783 destroyed. K-01 Serf collects debris. Acquired 13 matter. Acquired 4 matter. Acquired 6 matter. K-01 Serf collects debris. Structural Scanner destroyed. The unstable cave ceiling collapses. K-01 Serf crushed by falling debris. K-01 Serf destroyed. Med. Matter Pod crushed. as-76197 destroyed. Acquired 30 matter. Acquired 10 matter. Sml. Laser destroyed. Mining Laser destroyed. Map ----- +----------------------------------------------------+ | ?????????????????????????????????????????????????? | | ?????????????????????????????????????????????????? | | ?????????????????????????????????????????????????? | | ?????????????????????????????????????????????????? | | ?????????????????????????????????????????????????? | | ?????????????????????????????????????????????????? | | ?????????????????????????????????????????????????? | | ?????????????????????????????????????????????????? | | ?????????????????????????????????????????????????? | | ?????????????????????????????????????????????????? | | ?????????????????????????????????????????????????? | | ?????????????????????????????????????????????????? | | ?????????????????????????????????????????????????? | | ?????????????????????????????????????????????????? | | ?????????????????????????????????????????????????? | | ?????????????????????????????????????????????????? | | ?????????????????????????????????????????????????? | | ?????????????????????????????????????????????????? | | ???????????????????????????????????#?????????????? | | ????????????????????????????????? ##????????????? | | ?????###""##???????????????????# #????????????? | | ?????# X ???????????####### !%#????????????? | | ?????# ######?????# ???????????????? | | ?????# #?????# ???????????????????? | | #????# ####### a#??????????????????????? | | #????# @#??????????????????????? | | #????# #??????????????????????? | | #????# t##########??????????????????????? | | #????# #???????????????????????????????? | | #????###### # ###???????????????????????????????? | | #????????# #?????????????????????????????????? | | ########### #?????????????????????????????????? | | = ###?????????????????????????????????? | | ##############???????????????????????????????????? | | ##???????????????????????????????????????????????? | | ##??????????????????????????????????????????????? | | #??#######?????????????????????????????????????? | | ##??# #?????????????????????????????????????? | | #?## #?????????????????????????????????????? | | #?#T #?????????????????????????????????????? | | #?## #?????????????????????????????????????? | | ###??# """ #?????????????????????????????????????? | | #????# """ #?????????????????????????????????????? | | ###??# """ #?????????????????????????????????????? | | ##?# #?????????????????????????????????????? | | #?#### ##?????????????????????????????????????? | | #????# #????###############???????????????????? | | #????# #????# #???????????????????? | | #????# #????# """ """ < #???????????????????? | | ##???# #????# """ """ #???????????????????? | +----------------------------------------------------+ Best States ------------- Heat Dissipation 42 Energy Generation 17 Energy Capacity 415 Matter Stores 300 Matter Capacity 300 Sight Range 16 Robot Scan Range 10 Terrain Scan Density 85 Armor Coverage 150 Resistance: KI 35 Resistance: TH 35 Resistance: EX 35 Resistance: EM 35 Resistance: I 35 Resistance: S 35 Resistance: P 35 Power Shielding 33 Evasion (%) 40 Targeting Accuracy 5 Offensive Hacking 20 Item Schematics ----------------- None Robot Schematics ------------------ None Fabricated ------------ Nothing Alien Tech Used ----------------- None Achievements -------------- It's Just You Let's See Who's Tougher Challenges ------------ None Game ------ Seed 19760411 Manual? 1 Play Time 00:29:47 Cumulative 0.9 hours Start 2021.05.14 @ 17:23:04 End 2021.05.14 @ 17:53:51 Sessions 1 Manual Loads 0 Difficulty Explorer Special Mode None Game No. 1 Rogue 0 Adventurer 0 Explorer 1 Win Type - Total 0 Types 0/0/0/0/0/0/0/0/0 Lore% 0 Gallery% 2 Achievement% 4 Wizard Run 0 Options --------- ASCII 0 Keyboard 0 Movement Numpad Keybinds 0 Fullscreen 1 Font 36/Smallcaps Map View 76x50 Tactical HUD 0 Map Filters NONE Filters NONE Steam 1 RUN: 9ecf8d7c-c2d2-40be-9695-36af4883df22